fUST/lending_fUST_20240804
["ID","MTS","AMOUNT","RATE_DAILY","PERIOD"]
[334120960,1722786646615,-355.239967,0.00013871,2]
[334120962,1722786646624,-355.239967,0.00013871,2]
[334120964,1722786646633,-151.0,0.00013871,2]
[334120967,1722786646642,-151.0,0.00013871,2]
[334120970,1722786646651,-151.0,0.00013871,2]
[334120973,1722786646660,-500.0,0.00013879,2]
[334120976,1722786646670,-150.112233,0.000139,2]
[334120979,1722786646680,-500.0,0.00013952,2]
[334120982,1722786646689,-500.0,0.00013961,2]
[334120985,1722786646700,-3177.5,0.00013961,2]
[334120988,1722786646709,-151.0,0.00013962,2]
[334120991,1722786646719,-355.239967,0.00013962,2]
[334120994,1722786646729,-355.239967,0.00013962,2]
[334120997,1722786646738,-156.685041,0.00013962,2]
[334121000,1722786646747,-151.0,0.00013962,2]
[334121003,1722786646756,-151.0,0.00013962,2]
[334121006,1722786646766,-151.0,0.00013962,2]
[334121009,1722786646775,-200.497058,0.00013962,2]
[334121012,1722786646785,-200.497058,0.00013962,2]
[334121014,1722786646795,-151.0,0.00013962,2]
[334121018,1722786646805,-151.0,0.00013962,2]
[334121020,1722786646815,-174.940922,0.00013962,2]
[334121023,1722786646829,-174.940922,0.00013962,2]
[334121026,1722786646839,-151.0,0.00013962,2]
[334121029,1722786646849,-345.334545,0.00013962,2]
[334121032,1722786646858,-345.334545,0.00013962,2]
[334121035,1722786646868,-198.302904,0.00013962,2]
[334121038,1722786646877,-198.302904,0.00013962,2]
[334121041,1722786646886,-151.0,0.00013962,2]
[334121044,1722786646896,-151.0,0.00013962,2]
[334121047,1722786646906,-264.41744,0.00013962,2]
[334121049,1722786646916,-215.52746,0.00013962,2]
[334121052,1722786646925,-197.88972,0.00013962,2]
[334121054,1722786646935,-197.88972,0.00013962,2]
[334121058,1722786646946,-159.69959,0.00013962,2]
[334121060,1722786646955,-159.69959,0.00013962,2]
[334121063,1722786646965,-54821.9819779,0.00013962,2]
[334121066,1722786646975,-3177.5,0.00013971,2]
[334121068,1722786646985,-3177.5,0.00013971,2]
[334121070,1722786646994,-3177.5,0.00013971,2]
[334121072,1722786647004,-151.0,0.00013971,2]
[334121074,1722786647015,-345.334545,0.00013971,2]
[334121076,1722786647025,-345.334545,0.00013971,2]
[334121078,1722786647034,-198.302904,0.00013971,2]
[334121080,1722786647044,-198.302904,0.00013971,2]
[334121082,1722786647055,-151.0,0.00013971,2]
[334121084,1722786647065,-42009.01223919,0.00013972,5]
[334121086,1722786647079,-2071.97433436,0.00013972,5]
[334121088,1722786647089,-500.0,0.00013972,2]
[334121091,1722786647100,-577.60808398,0.00013972,2]
[334121093,1722786647110,-500.0,0.00013972,2]
[334121094,1722786647119,-500.0,0.00013972,2]
[334121096,1722786647132,-151.0,0.00013972,2]
[334121098,1722786647141,-500.0,0.00013972,2]
[334121100,1722786647150,-594.58462071,0.00013972,2]
[334121102,1722786647159,-151.0,0.00013972,2]
[334121106,1722786647169,-500.0,0.00013972,2]
[334121108,1722786647178,-500.0,0.00013972,2]
[334121111,1722786647188,-500.0,0.00013972,2]
[334121115,1722786647198,-500.0,0.00013972,2]
[334121117,1722786647207,-248.97224927,0.00013972,2]
[334121119,1722786647216,-500.0,0.00013972,2]
[334121121,1722786647225,-500.0,0.00013972,2]
[334121124,1722786647234,-516.37607171,0.00013972,2]
[334121127,1722786647243,-500.0,0.00013972,2]
[334121130,1722786647252,-500.0,0.00013972,2]
[334121132,1722786647261,-500.0,0.00013972,2]
[334121134,1722786647270,-500.0,0.00013972,2]
[334121136,1722786647279,-574.99927375,0.00013972,2]
[334121138,1722786647288,-500.0,0.00013972,2]
[334121140,1722786647298,-500.0,0.00013972,2]
[334121142,1722786647311,-500.0,0.00013972,2]
[334121144,1722786647320,-500.0,0.00013972,2]
[334121146,1722786647334,-500.0,0.00013972,2]
[334121148,1722786647343,-174.95077293,0.00013972,2]
[334121150,1722786647355,-500.0,0.00013972,2]
[334121152,1722786647365,-151.0,0.00013972,2]
[334121154,1722786647374,-500.0,0.00013972,2]
[334121156,1722786647385,-308.14458522,0.00013972,2]
[334121158,1722786647396,-355.239967,0.00013972,2]
[334121160,1722786647406,-355.239967,0.00013972,2]
[334121162,1722786647416,-500.0,0.00013972,2]
[334121164,1722786647425,-500.0,0.00013972,2]
[334121166,1722786647435,-500.0,0.00013972,2]
[334121168,1722786647446,-500.0,0.00013972,2]
[334121170,1722786647455,-500.0,0.00013972,2]
[334121172,1722786647465,-500.0,0.00013972,2]
[334121174,1722786647474,-500.0,0.00013972,2]
[334121176,1722786647483,-500.0,0.00013972,2]
[334121178,1722786647493,-500.0,0.00013972,2]
[334121180,1722786647502,-500.0,0.00013972,2]
[334121182,1722786647512,-500.0,0.00013972,2]
[334121185,1722786647522,-500.0,0.00013972,2]
[334121187,1722786647532,-500.0,0.00013972,2]
[334121189,1722786647541,-740.91,0.00013972,2]
[334121190,1722786647551,-576.3,0.00013972,2]
[334121193,1722786647561,-645.82,0.00013972,2]
[334121195,1722786647570,-590.05,0.00013972,2]
[334121196,1722786647583,-500.0,0.00013972,2]
[334121197,1722786647593,-500.0,0.00013972,2]
[334121198,1722786647602,-500.0,0.00013972,2]
[334121199,1722786647612,-500.0,0.00013972,2]
[334121200,1722786647622,-1138.05,0.00013972,2]
[334121201,1722786647632,-500.0,0.00013972,2]
[334121202,1722786647643,-500.0,0.00013972,2]
[334121203,1722786647652,-500.0,0.00013972,2]
[334121204,1722786647662,-500.0,0.00013972,2]
[334121205,1722786647672,-223.14955709,0.00013972,2]
[334121206,1722786647682,-500.0,0.00013972,2]
[334121207,1722786647691,-500.0,0.00013972,2]
[334121208,1722786647700,-500.0,0.00013972,2]
[334121209,1722786647710,-500.0,0.00013972,2]
[334121210,1722786647719,-500.0,0.00013972,2]
[334121211,1722786647729,-500.0,0.00013972,2]
[334121212,1722786647738,-500.0,0.00013972,2]
[334121213,1722786647748,-500.0,0.00013972,2]
[334121214,1722786647758,-151.0,0.00013972,2]
[334121215,1722786647769,-500.0,0.00013972,2]
[334121216,1722786647780,-500.0,0.00013972,2]
[334121217,1722786647791,-445.20815378,0.00013972,2]
[334121218,1722786647801,-500.0,0.00013972,2]
[334121219,1722786647811,-500.0,0.00013972,2]
[334121220,1722786647821,-500.0,0.00013972,2]
[334121221,1722786647833,-200.497058,0.00013972,2]
[334121222,1722786647845,-500.0,0.00013972,2]
[334121223,1722786647855,-500.0,0.00013972,2]
[334121224,1722786647866,-200.497058,0.00013972,2]
[334121225,1722786647876,-500.0,0.00013972,2]
[334121226,1722786647887,-500.0,0.00013972,2]
[334121227,1722786647898,-500.0,0.00013972,2]
[334121228,1722786647909,-636.8,0.00013972,2]
[334121229,1722786647918,-500.0,0.00013972,2]
[334121230,1722786647928,-500.0,0.00013972,2]
[334121231,1722786647938,-1050.69,0.00013972,2]
[334121232,1722786647949,-500.0,0.00013972,2]
[334121233,1722786647961,-151.0,0.00013972,2]
[334121234,1722786647970,-567.52,0.00013972,2]
[334121235,1722786647980,-500.0,0.00013972,2]
[334121236,1722786647990,-500.0,0.00013972,2]
[334121237,1722786648001,-1014.9,0.00013972,2]
[334121238,1722786648010,-500.0,0.00013972,2]
[334121239,1722786648021,-3389.74,0.00013972,2]
[334121240,1722786648030,-500.0,0.00013972,2]
[334121241,1722786648039,-392.6,0.00013972,2]
[334121242,1722786648049,-307.89952846,0.00013972,2]
[334121243,1722786648060,-500.0,0.00013972,2]
[334121244,1722786648071,-500.0,0.00013972,2]
[334121245,1722786648082,-236.27118631,0.00013972,2]
[334121246,1722786648092,-1493.49,0.00013972,2]
[334121247,1722786648101,-812.31,0.00013972,2]
[334121248,1722786648110,-174.940922,0.00013972,2]
[334121249,1722786648120,-174.940922,0.00013972,2]
[334121250,1722786648129,-500.0,0.00013972,2]
[334121251,1722786648139,-553.68,0.00013972,2]
[334121252,1722786648148,-1702.84,0.00013972,2]
[334121253,1722786648158,-1061.33,0.00013972,2]
[334121254,1722786648168,-159.70243623,0.00013972,2]
[334121255,1722786648177,-968.78,0.00013972,2]
[334121256,1722786648187,-500.0,0.00013972,2]
[334121257,1722786648198,-500.0,0.00013972,2]
[334121258,1722786648208,-500.0,0.00013972,2]
[334121259,1722786648217,-668.97,0.00013972,2]
[334121260,1722786648226,-500.0,0.00013972,2]
[334121261,1722786648236,-243.133118,0.00013972,2]
[334121262,1722786648246,-500.0,0.00013972,2]
[334121263,1722786648256,-500.0,0.00013972,2]
[334121264,1722786648266,-500.0,0.00013972,2]
[334121265,1722786648277,-500.0,0.00013972,2]
[334121266,1722786648287,-500.0,0.00013972,2]
[334121267,1722786648297,-523.13,0.00013972,2]
[334121268,1722786648309,-500.0,0.00013972,2]
[334121269,1722786648318,-345.334545,0.00013972,2]
[334121270,1722786648332,-345.334545,0.00013972,2]
[334121271,1722786648342,-345.334545,0.00013972,2]
[334121272,1722786648353,-345.334545,0.00013972,2]
[334121273,1722786648363,-500.0,0.00013972,2]
[334121274,1722786648372,-500.0,0.00013972,2]
[334121275,1722786648382,-774.0,0.00013972,2]
[334121276,1722786648393,-500.0,0.00013972,2]
[334121277,1722786648405,-2409.03,0.00013972,2]
[334121278,1722786648414,-500.0,0.00013972,2]
[334121279,1722786648424,-1501.68,0.00013972,2]
[334121280,1722786648433,-500.0,0.00013972,2]
[334121281,1722786648443,-198.302904,0.00013972,2]
[334121282,1722786648452,-198.302904,0.00013972,2]
[334121283,1722786648462,-198.302904,0.00013972,2]
[334121284,1722786648471,-198.302904,0.00013972,2]
[334121285,1722786648481,-151.0,0.00013972,2]
[334121286,1722786648584,-151.0,0.00013972,2]
[334121287,1722786648596,-500.0,0.00013972,2]
[334121288,1722786648606,-500.0,0.00013972,2]
[334121289,1722786648617,-500.0,0.00013972,2]
[334121290,1722786648627,-500.0,0.00013972,2]
[334121291,1722786648636,-500.0,0.00013972,2]
[334121292,1722786648646,-500.0,0.00013972,2]
[334121293,1722786648656,-500.0,0.00013972,2]
[334121294,1722786648666,-3243.24,0.00013972,2]
[334121295,1722786648676,-514.98561852,0.00013972,2]
[334121296,1722786648686,-500.0,0.00013972,2]
[334121297,1722786648696,-500.0,0.00013972,2]
[334121298,1722786648706,-500.0,0.00013972,2]
[334121299,1722786648716,-1389.66,0.00013972,2]
[334121300,1722786648727,-500.0,0.00013972,2]
[334121301,1722786648736,-2933.51,0.00013972,2]
[334121302,1722786648746,-500.0,0.00013972,2]
[334121303,1722786648756,-197.88972,0.00013972,2]
[334121304,1722786648765,-197.88972,0.00013972,2]
[334121305,1722786648776,-500.0,0.00013972,2]
[334121306,1722786648786,-605.71,0.00013972,2]
[334121307,1722786648796,-197.88972,0.00013972,2]
[334121308,1722786648806,-197.88972,0.00013972,2]
[334121309,1722786648815,-500.0,0.00013972,2]
[334121310,1722786648827,-500.0,0.00013972,2]
[334121311,1722786648837,-789.58,0.00013972,2]
[334121312,1722786648847,-500.0,0.00013972,2]
[334121313,1722786648857,-500.0,0.00013972,2]
[334121314,1722786648866,-500.0,0.00013972,2]
[334121315,1722786648876,-500.0,0.00013972,2]
[334121316,1722786648889,-500.0,0.00013972,2]
[334121317,1722786648901,-500.0,0.00013972,2]
[334121318,1722786648910,-500.0,0.00013972,2]
[334121319,1722786648921,-500.0,0.00013972,2]
[334121320,1722786648931,-159.69959,0.00013972,2]
[334121321,1722786648941,-159.69959,0.00013972,2]
[334121322,1722786648951,-500.0,0.00013972,2]
[334121323,1722786648960,-159.69959,0.00013972,2]
[334121324,1722786648970,-200.25906629,0.00013972,2]
[334121325,1722786648979,-159.69959,0.00013972,2]
[334121326,1722786648989,-500.0,0.00013972,2]
[334121327,1722786648998,-200.0,0.00013973,2]
[334121328,1722786649008,-27410.9909889,0.0001398,2]
[334121329,1722786649018,-151.0,0.00013989,2]
[334121330,1722786649027,-200.497058,0.00013989,2]
[334121331,1722786649039,-200.497058,0.00013989,2]
[334121332,1722786649049,-151.0,0.00013989,2]
[334121333,1722786649058,-174.940922,0.00013989,2]
[334121334,1722786649068,-174.940922,0.00013989,2]
[334121335,1722786649088,-197.88972,0.00013989,2]
[334121336,1722786649097,-197.88972,0.00013989,2]
[334121337,1722786649107,-159.69959,0.00013989,2]
[334121338,1722786649117,-159.69959,0.00013989,2]
[334121339,1722786649127,-253.126703,0.0001399,2]
[334121340,1722786649136,-355.239967,0.0001399,2]
[334121341,1722786649146,-355.239967,0.0001399,2]
[334121342,1722786649157,-3177.5,0.00013999,2]
[334121343,1722786649167,-4151.99,0.00014,2]
[334121344,1722786649178,-263.43442812,0.00014,2]
[334121345,1722786649188,-633.07328817,0.00014059,2]
[334121346,1722786649198,-150.112233,0.000141,2]
[334121347,1722786649208,-27410.9909889,0.00014135,2]
[334121348,1722786649217,-1781.96152461,0.00014145,2]
[334121349,1722786649227,-345.334545,0.00014145,2]
[334121350,1722786649236,-345.334545,0.00014145,2]
[334121351,1722786649246,-198.302904,0.00014145,2]
[334121352,1722786649255,-198.302904,0.00014145,2]
[334121353,1722786649265,-151.0,0.00014145,2]
[334121354,1722786649274,-197.88972,0.00014145,2]
[334121355,1722786649284,-197.88972,0.00014145,2]
[334121356,1722786649294,-159.69959,0.00014145,2]
[334121357,1722786649304,-159.69959,0.00014145,2]
[334121358,1722786649316,-200.0,0.00014146,2]
[334121359,1722786649327,-151.0,0.00014225,2]
[334121360,1722786649337,-200.497058,0.00014225,2]
[334121361,1722786649346,-200.497058,0.00014225,2]
[334121362,1722786649356,-151.0,0.00014225,2]
[334121363,1722786649366,-174.940922,0.00014225,2]
[334121364,1722786649376,-174.940922,0.00014225,2]
[334121365,1722786649387,-3177.5,0.00014235,2]
[334121366,1722786649397,-355.239967,0.00014236,2]
[334121367,1722786649407,-355.239967,0.00014236,2]
[334121368,1722786649416,-151.0,0.00014236,2]
[334121369,1722786649426,-200.497058,0.00014236,2]
[334121370,1722786649436,-200.497058,0.00014236,2]
[334121371,1722786649445,-151.0,0.00014236,2]
[334121372,1722786649455,-174.940922,0.00014236,2]
[334121373,1722786649465,-174.940922,0.00014236,2]
[334121374,1722786649475,-345.334545,0.00014236,2]
[334121375,1722786649486,-345.334545,0.00014236,2]
[334121376,1722786649495,-198.302904,0.00014236,2]
[334121377,1722786649505,-198.302904,0.00014236,2]
[334121378,1722786649514,-151.0,0.00014236,2]
[334121379,1722786649524,-3177.5,0.00014245,2]
[334121380,1722786649534,-3177.5,0.00014245,2]
[334121381,1722786649544,-500.0,0.00014246,2]
[334121382,1722786649553,-634.65468951,0.00014246,2]
[334121383,1722786649563,-500.0,0.00014246,2]
[334121384,1722786649572,-500.0,0.00014246,2]
[334121385,1722786649582,-500.0,0.00014246,2]
[334121386,1722786649592,-500.0,0.00014246,2]
[334121387,1722786649602,-500.0,0.00014246,2]
[334121388,1722786649613,-500.0,0.00014246,2]
[334121389,1722786649624,-500.0,0.00014246,2]
[334121390,1722786649634,-500.0,0.00014246,2]
[334121391,1722786649643,-265.68898801,0.00014246,2]
[334121392,1722786649653,-506.94553374,0.00014246,2]
[334121393,1722786649663,-500.0,0.00014246,2]
[334121394,1722786649674,-500.0,0.00014246,2]
[334121395,1722786649683,-500.0,0.00014246,2]
[334121396,1722786649693,-500.0,0.00014246,2]
[334121397,1722786649702,-500.0,0.00014246,2]
[334121398,1722786649711,-500.0,0.00014246,2]
[334121399,1722786649721,-355.239967,0.00014246,2]
[334121400,1722786649730,-355.239967,0.00014246,2]
[334121401,1722786649740,-355.239967,0.00014246,2]
[334121402,1722786649750,-355.239967,0.00014246,2]
[334121403,1722786649759,-447.64376257,0.00014246,2]
[334121404,1722786649769,-500.0,0.00014246,2]
[334121405,1722786649779,-449.97,0.00014246,2]
[334121406,1722786649789,-500.0,0.00014246,2]
[334121407,1722786649798,-500.0,0.00014246,2]
[334121408,1722786649808,-500.0,0.00014246,2]
[334121409,1722786649817,-500.0,0.00014246,2]
[334121410,1722786649828,-220.15540008,0.00014246,2]
[334121411,1722786649838,-500.0,0.00014246,2]
[334121412,1722786649848,-740.91,0.00014246,2]
[334121413,1722786649857,-576.3,0.00014246,2]
[334121414,1722786649867,-645.82,0.00014246,2]
[334121415,1722786649877,-594.39,0.00014246,2]
[334121416,1722786649887,-648.44268291,0.00014246,2]
[334121417,1722786649896,-500.0,0.00014246,2]
[334121418,1722786649906,-500.0,0.00014246,2]
[334121419,1722786649915,-1138.05,0.00014246,2]
[334121420,1722786649925,-500.0,0.00014246,2]
[334121421,1722786649934,-500.0,0.00014246,2]
[334121422,1722786649943,-500.0,0.00014246,2]
[334121423,1722786649953,-500.0,0.00014246,2]
[334121424,1722786649962,-500.0,0.00014246,2]
[334121425,1722786649972,-500.0,0.00014246,2]
[334121426,1722786649982,-500.0,0.00014246,2]
[334121427,1722786649992,-500.0,0.00014246,2]
[334121428,1722786650002,-500.0,0.00014246,2]
[334121429,1722786650015,-500.0,0.00014246,2]
[334121430,1722786650029,-500.0,0.00014246,2]
[334121431,1722786650039,-500.0,0.00014246,2]
[334121432,1722786650048,-151.0,0.00014246,2]
[334121433,1722786650057,-263.22377956,0.00014246,2]
[334121434,1722786650066,-186.69242865,0.00014246,2]
[334121435,1722786650077,-500.0,0.00014246,2]
[334121436,1722786650086,-500.0,0.00014246,2]
[334121437,1722786650095,-200.497058,0.00014246,2]
[334121438,1722786650105,-500.0,0.00014246,2]
[334121439,1722786650114,-224.30701069,0.00014246,2]
[334121440,1722786650124,-200.497058,0.00014246,2]
[334121441,1722786650133,-500.0,0.00014246,2]
[334121442,1722786650142,-500.0,0.00014246,2]
[334121443,1722786650152,-636.8,0.00014246,2]
[334121444,1722786650161,-500.0,0.00014246,2]
[334121445,1722786650171,-500.0,0.00014246,2]
[334121446,1722786650180,-1050.69,0.00014246,2]
[334121447,1722786650189,-500.0,0.00014246,2]
[334121448,1722786650199,-151.0,0.00014246,2]
[334121449,1722786650208,-567.52,0.00014246,2]
[334121450,1722786650217,-500.0,0.00014246,2]
[334121451,1722786650226,-261.55516145,0.00014246,2]
[334121452,1722786650236,-1014.9,0.00014246,2]
[334121453,1722786650245,-500.0,0.00014246,2]
[334121454,1722786650254,-3389.74,0.00014246,2]
[334121455,1722786650264,-500.0,0.00014246,2]
[334121456,1722786650273,-500.0,0.00014246,2]
[334121457,1722786650283,-500.0,0.00014246,2]
[334121458,1722786650292,-1493.49,0.00014246,2]
[334121459,1722786650302,-812.31,0.00014246,2]
[334121460,1722786650314,-174.940922,0.00014246,2]
[334121461,1722786650326,-174.940922,0.00014246,2]
[334121462,1722786650335,-553.68,0.00014246,2]
[334121463,1722786650345,-1702.84,0.00014246,2]
[334121464,1722786650355,-1061.33,0.00014246,2]
[334121465,1722786650365,-968.78,0.00014246,2]
[334121466,1722786650374,-500.0,0.00014246,2]
[334121467,1722786650384,-500.0,0.00014246,2]
[334121468,1722786650394,-500.0,0.00014246,2]
[334121469,1722786650403,-668.97,0.00014246,2]
[334121470,1722786650413,-500.0,0.00014246,2]
[334121471,1722786650422,-500.0,0.00014246,2]
[334121472,1722786650432,-500.0,0.00014246,2]
[334121473,1722786650442,-500.0,0.00014246,2]
[334121474,1722786650452,-500.0,0.00014246,2]
[334121475,1722786650462,-500.0,0.00014246,2]
[334121476,1722786650471,-345.334545,0.00014246,2]
[334121477,1722786650481,-500.0,0.00014246,2]
[334121478,1722786650490,-345.334536,0.00014246,2]
[334121479,1722786650500,-500.0,0.00014246,2]
[334121480,1722786650509,-774.0,0.00014246,2]
[334121481,1722786650519,-500.0,0.00014246,2]
[334121482,1722786650528,-2409.03,0.00014246,2]
[334121483,1722786650538,-500.0,0.00014246,2]
[334121484,1722786650548,-1501.68,0.00014246,2]
[334121485,1722786650557,-500.0,0.00014246,2]
[334121486,1722786650566,-198.302904,0.00014246,2]
[334121487,1722786650576,-198.302908,0.00014246,2]
[334121488,1722786650586,-151.0,0.00014246,2]
[334121489,1722786650596,-500.0,0.00014246,2]
[334121490,1722786650605,-500.0,0.00014246,2]
[334121491,1722786650615,-500.0,0.00014246,2]
[334121492,1722786650624,-500.0,0.00014246,2]
[334121493,1722786650635,-500.0,0.00014246,2]
[334121494,1722786650644,-3243.24,0.00014246,2]
[334121495,1722786650654,-500.0,0.00014246,2]
[334121496,1722786650664,-500.0,0.00014246,2]
[334121497,1722786650673,-500.0,0.00014246,2]
[334121498,1722786650682,-1389.66,0.00014246,2]
[334121499,1722786650693,-396.31296601,0.00014246,2]
[334121500,1722786650702,-2933.51,0.00014246,2]
[334121501,1722786650712,-500.0,0.00014246,2]
[334121502,1722786650722,-500.0,0.00014246,2]
[334121503,1722786650733,-197.88972,0.00014246,2]
[334121504,1722786650743,-197.88972,0.00014246,2]
[334121505,1722786650752,-605.71,0.00014246,2]
[334121506,1722786650761,-500.0,0.00014246,2]
[334121507,1722786650770,-197.88972,0.00014246,2]
[334121508,1722786650779,-500.0,0.00014246,2]
[334121509,1722786650789,-197.88973,0.00014246,2]
[334121510,1722786650799,-789.58,0.00014246,2]
[334121511,1722786650809,-500.0,0.00014246,2]
[334121512,1722786650818,-500.0,0.00014246,2]
[334121513,1722786650829,-410.19773955,0.00014246,2]
[334121514,1722786650839,-209.35213203,0.00014246,2]
[334121515,1722786650849,-500.0,0.00014246,2]
[334121516,1722786650859,-500.0,0.00014246,2]
[334121517,1722786650869,-500.0,0.00014246,2]
[334121518,1722786650878,-159.69959,0.00014246,2]
[334121519,1722786650888,-500.0,0.00014246,2]
[334121520,1722786650898,-159.69959,0.00014246,2]
[334121521,1722786650908,-500.0,0.00014246,2]
[334121522,1722786650918,-159.69959,0.00014246,2]
[334121523,1722786650928,-159.699581,0.00014246,2]
[334121524,1722786650938,-193.511103,0.00014247,2]
[334121525,1722786650948,-447.489081,0.00014247,2]
[334121526,1722786650958,-3177.5,0.00014446,2]
[334121527,1722786650968,-500.0,0.00014447,7]
[334121528,1722786650977,-520.34,0.00014447,7]
[334121529,1722786650987,-500.0,0.00014447,7]
[334121530,1722786650997,-500.0,0.00014447,7]
[334121531,1722786651011,-500.0,0.00014447,7]
[334121532,1722786651020,-500.0,0.00014447,7]
[334121533,1722786651029,-500.0,0.00014447,7]
[334121534,1722786651039,-373.6,0.00014447,7]
[334121535,1722786651049,-500.0,0.00014447,7]
[334121536,1722786651059,-320.79,0.00014447,7]
[334121537,1722786651069,-500.0,0.00014447,7]
[334121538,1722786651080,-500.0,0.00014447,7]
[334121539,1722786651090,-500.0,0.00014447,7]
[334121540,1722786651099,-325.28,0.00014447,7]
[334121541,1722786651108,-455.01,0.00014447,7]
[334121542,1722786651206,-151.0,0.00014477,2]
[334121543,1722786651216,-200.497058,0.00014477,2]
[334121544,1722786651226,-200.497058,0.00014477,2]
[334121545,1722786651235,-151.0,0.00014477,2]
[334121546,1722786651245,-174.940922,0.00014477,2]
[334121547,1722786651254,-174.940922,0.00014477,2]
[334121548,1722786651263,-150.112233,0.000145,2]
[334121549,1722786651272,-711.27223154,0.00014509,2]
[334121550,1722786651293,-660.92107641,0.00014509,2]
[334121551,1722786651467,-443.42391685,0.00013793,2]
[334121552,1722786651477,-1805.30669205,0.00014509,2]
[334121553,1722786651488,-355.239967,0.0001451,2]
[334121554,1722786651497,-109.8898691,0.0001451,2]
[334121555,1722786651509,-245.3500979,0.0001451,2]
[334121556,1722786651518,-151.0,0.0001451,2]
[334121557,1722786651527,-810.0835316,0.00014519,2]
[334121558,1722786651538,-487.71149773,0.00014519,2]
[334121559,1722786651558,-358.28247966,0.00014519,2]
[334121560,1722786651605,-1521.42249101,0.00014519,2]
[334121561,1722786651614,-1693.36404649,0.00014519,2]
[334121562,1722786651625,-1484.13595351,0.00014519,2]
[334121563,1722786651635,-3177.5,0.00014519,2]
[334121564,1722786651644,-500.0,0.0001452,2]
[334121565,1722786651653,-152.19550971,0.0001452,2]
[334121566,1722786651663,-500.0,0.0001452,2]
[334121567,1722786651673,-500.0,0.0001452,2]
[334121568,1722786651682,-500.0,0.0001452,2]
[334121569,1722786651692,-500.0,0.0001452,2]
[334121570,1722786651701,-500.0,0.0001452,2]
[334121571,1722786651710,-500.0,0.0001452,2]
[334121572,1722786651719,-501.56270047,0.0001452,2]
[334121573,1722786651729,-500.0,0.0001452,2]
[334121574,1722786651738,-500.0,0.0001452,2]
[334121575,1722786651747,-288.07417282,0.0001452,2]
[334121576,1722786651759,-211.92582718,0.0001452,2]
[334121577,1722786651768,-500.0,0.0001452,2]
[334121578,1722786651777,-289.42856188,0.0001452,2]
[334121579,1722786651786,-355.239967,0.0001452,2]
[334121580,1722786651795,-355.239967,0.0001452,2]
[334121581,1722786651804,-506.43917156,0.0001452,2]
[334121582,1722786651812,-500.0,0.0001452,2]
[334121583,1722786651822,-500.0,0.0001452,2]
[334121584,1722786651832,-336.08,0.0001452,2]
[334121585,1722786651842,-740.91,0.0001452,2]
[334121586,1722786651851,-576.3,0.0001452,2]
[334121587,1722786651861,-645.82,0.0001452,2]
[334121588,1722786651870,-500.0,0.0001452,2]
[334121589,1722786651879,-500.0,0.0001452,2]
[334121590,1722786651888,-1138.05,0.0001452,2]
[334121591,1722786651897,-377.30956451,0.0001452,2]
[334121592,1722786651906,-500.0,0.0001452,2]
[334121593,1722786651915,-500.0,0.0001452,2]
[334121594,1722786651924,-500.0,0.0001452,2]
[334121595,1722786651934,-500.0,0.0001452,2]
[334121596,1722786651943,-500.0,0.0001452,2]
[334121597,1722786651953,-190.05372415,0.0001452,2]